Cogmind - Beta 14 @@@ ROGUE MODE // 2025.01.11 @ 20:29:00 Player: Swagumen Result: Destroyed by G-47 Trooper with Particle Gun Performance ------------- Evolutions (2) 1000 Regions Visited (6) 1200 Robots Destroyed (67) 335 Value Destroyed (2305) 2305 Prototype IDs (25) 500 Alien Tech Used (0) 0 Bonus (531) 531 TOTAL SCORE: 5871 Bonus ------- High Alert Combat Kills 31 Entered Garrisons 200 Aligned with FarCom 300 Cogmind --------- Core Integrity 0/550 Matter 69/300 Energy 97/100 System Corruption 1% Temperature Cool (50) Movement Treading (160) Location -8/Garrison Parts ------- > --- POWER (1) -------- (None) > --- PROPULSION (4) --- Light Treads Flight Unit > --- UTILITY (4) ------ Small Storage Unit > --- WEAPON (2) ------- Improved Medium Laser > --- INVENTORY (8) ---- Relay Coupler [NC] (23) Relay Coupler [Brawler] (21) Faulty Advanced Beam Rifle Faulty Advanced Beam Rifle Proton Missile Launcher Remote Datajack Katana Peak State ------------ > --- POWER ------------ Light Angular Momentum Engine > --- PROPULSION ------- Light Treads Light Treads Light Treads Light Treads > --- UTILITY ---------- Small Storage Unit Improved Sensor Array Modified TNC Hardened Light Armor Plating > --- WEAPON ----------- Minigun Minigun > --- INVENTORY -------- Improved Medium Laser Advanced Beam Rifle Advanced Beam Rifle Proton Missile Launcher Mini Grenade Launcher Remote Datajack Katana [Rating: 29] Favorites ----------- Power Light Nuclear Core Engine Light Ion Engine Power Core Light Nuclear Core Propulsion Light Treads Treads Light Treads Wheel Wheel Hover Unit Hover Unit Flight Unit Flight Unit Utility Small Storage Unit Device Improved Sensor Array Storage Small Storage Unit Processor Modified TNC Protection Hardened Light Armor Plating Weapon Shotgun Energy Gun Improved Medium Laser Ballistic Gun Shotgun Launcher Mini Grenade Launcher Slashing Weapon Katana Build | -11 -10 -10 -10 -9 -8 -8 ------- Run | Yrd Mat Min Exi Min Mat Gar Slots Evolved 4 | . . . . . 4 . Power . | . . . . . . . Propulsion 2 | . . . . . 2 . Utility 2 | . . . . . 2 . Weapon . | . . . . . . . Parts Attached 56 | 7 9 1 2 2 28 7 Power 8 | 1 1 . . . 5 1 Engine 2 | 1 . . . . . 1 Core 6 | . 1 . . . 5 . Reactor . | . . . . . . . Propulsion 18 | 2 2 . . . 13 1 Treads 11 | 2 . . . . 9 . Leg . | . . . . . . . Wheel 1 | . . . . . 1 . Hover 1 | . . . . . 1 . Flight 5 | . 2 . . . 2 1 Utility 7 | 2 . . 1 . 4 . Device 2 | 1 . . . . 1 . Storage 1 | 1 . . . . . . Processor 1 | . . . 1 . . . Hackware . | . . . . . . . Protection 3 | . . . . . 3 . Artifact . | . . . . . . . Weapon 23 | 2 6 1 1 2 6 5 Energy Gun 1 | . . . . . . 1 Energy Cannon . | . . . . . . . Ballistic Gun 16 | 2 4 . 1 1 6 2 Ballistic Cannon . | . . . . . . . Launcher 5 | . 2 1 . 1 . 1 Special Weapon . | . . . . . . . Impact Weapon . | . . . . . . . Slashing Weapon 1 | . . . . . . 1 Piercing Weapon . | . . . . . . . Special Melee Weapon . | . . . . . . . Unidentified Prototypes 1 | . . . . . 1 . Parts Lost 31 | . 5 . . . 17 9 Power 5 | . 1 . . . 2 2 Propulsion 16 | . 2 . . . 11 3 Utility 4 | . 1 . . . 1 2 Weapon 6 | . 1 . . . 3 2 Highest Loss Streak 8 | . 2 . . . 6 8 To Critical Strikes . | . . . . . . . Average Slot Usage (%) 79 | . 89 85 91 100 64 88 Engine 1 | . 9 . . . . 6 Core 8 | . 4 14 14 14 7 2 Treads 11 | . 17 . . . 13 33 Flight 10 | . 4 28 28 28 1 . Device 4 | . 10 . . . 4 3 Storage 11 | . 14 14 14 14 9 9 Processor 6 | . . . 6 14 9 7 Protection 1 | . . . . . 2 7 Ballistic Gun 20 | . 26 27 28 25 16 10 Peak Build Rating 29 | 7 11 11 17 17 27 29 Average Rating 16 | 4 8 11 13 17 19 25 On Entrance 12 | . 7 11 11 17 17 27 Naked Turns . | . . . . . . . Heaviest Build 28 | 13 17 16 16 16 22 28 Greatest Support 80 | 40 40 8 8 8 80 80 Greatest Overweight (x) 5 | . 5 1 1 1 5 . Average Overweight (x) . | . . 1 1 1 . . Largest Inventory Capacity 8 | 8 8 8 8 8 8 8 Average Capacity 7 | 7 8 8 8 8 8 8 Most Carried 8 | 5 8 7 8 8 8 8 Average Carried 6 | . 3 7 7 7 6 7 Final Capacity 8 | 8 8 8 8 8 8 8 Final Carried 8 | . 7 7 7 7 8 7 Class Distribution -------------------- 65% | Mutant 22% | Scavenger-Skirmisher 4% | Scavenger-Mutant 4% | Skirmisher Dominant Class ---------------- Mutant | -10/Materials Mutant | -10/Mines Mutant | -10/Exiles Mutant | -9/Mines Scavenger-Skirmisher | -8/Materials Scavenger-Mutant | -8/Garrison Resources | -11 -10 -10 -10 -9 -8 -8 ----------- Run | Yrd Mat Min Exi Min Mat Gar Matter Collected 2125 | 109 552 125 . 86 1197 56 Remotely . | . . . . . . . Salvage Created 2363 | 106 440 37 . . 1551 229 Parts 130 | 8 37 1 . . 72 12 Haulers Intercepted 2 | . . . . . 2 . Recyclers Shooed 2 | 1 . . . . 1 . Parts Field Recycled . | . . . . . . . Retrieved Matter . | . . . . . . . Parts Self-Destructed . | . . . . . . . Prevented . | . . . . . . . Kills | -11 -10 -10 -10 -9 -8 -8 ------- Run | Yrd Mat Min Exi Min Mat Gar Combat Hostiles Destroyed 49 | . 12 2 . 1 27 7 Guns 42 | . 9 1 . . 27 5 AOE 7 | . 3 1 . 1 . 2 Classes Destroyed 13 | 2 6 . . 1 4 . Worker 2 | . 1 . . . 1 . Builder 3 | . 3 . . . . . Tunneler 4 | 3 . . . . 1 . Hauler 2 | . . . . . 2 . Recycler 3 | 1 1 . . . 1 . Operator 3 | . 1 . . . 2 . Watcher 2 | . 1 . . . 1 . Swarmer 14 | . 6 . . . 4 4 Grunt 23 | . 6 2 . . 13 2 Duelist 1 | . . . . . 1 . Sentry 7 | . . . . . 6 1 Hunter 3 | . . . . . 3 . Assembled 1 | . . . . 1 . . Best Kill Streak 5 | 3 5 1 . 1 5 4 Combat Bots Only 5 | . 3 1 . 1 5 4 Max Kills in Single Turn 3 | 1 3 1 . 1 2 1 Gunslinging 1 | . . . . . 1 . Exploded 2 | . 2 1 . 1 . 1 Melee . | . . . . . . . Uniques/NPCs Destroyed . | . . . . . . . Combat | -11 -10 -10 -10 -9 -8 -8 -------- Run | Yrd Mat Min Exi Min Mat Gar Hostile Shots Fired 408 | . 105 11 . . 200 92 Missed 106 | . 25 3 . . 55 23 Damage Taken 4191 | . 941 107 . 32 2354 757 Core 751 | . 168 30 . . 430 123 Absorbed by Shields . | . . . . . . . Regen/Repaired (Parts) 43 | . . . . . 43 . Core Remaining (%) 60 | 100 . . . 20 . . Volleys Fired 245 | 7 59 13 . 10 128 28 Largest 2 | 2 2 2 . 1 2 2 Hottest 56 | 40 46 46 . 30 50 56 Shots Fired 445 | 14 107 21 . 10 255 38 Gun 421 | 14 104 16 . . 255 32 Cannon . | . . . . . . . Launcher 24 | . 3 5 . 10 . 6 Special . | . . . . . . . Kinetic 417 | 14 104 16 . . 255 28 Thermal 4 | . . . . . . 4 Explosive 18 | . 3 5 . 10 . . Electromagnetic 6 | . . . . . . 6 Robot Hit Streak 13 | 6 9 13 . 1 13 7 Robot Miss Streak 7 | 3 7 3 . 1 3 4 Penetration Max . | . . . . . . . Secondary Targets 6 | . 1 . . . 5 . Max Gunslinging Chain 1 | . 1 . . . 1 . Shots Hit Robots 283 | 9 61 9 . 1 182 21 Core Hits 134 | 5 34 5 . 3 75 12 Critical Kills 2 | . . . . . 2 . Critical Parts Destroyed 2 | . . . . . 2 . Critical Strikes 4 | . . . . . 4 . Destroy 4 | . . . . . 4 . Melee Attacks 6 | . . . . . . 6 Impact . | . . . . . . . Slashing 6 | . . . . . . 6 Piercing . | . . . . . . . Sneak Attacks . | . . . . . . . Combat Hostiles . | . . . . . . . Follow-up Attacks . | . . . . . . . Damage Inflicted 5197 | 118 1082 251 . 86 3114 546 Guns 4388 | 118 871 136 . . 2921 342 Cannons . | . . . . . . . Explosions 807 | . 209 115 . 86 193 204 Melee . | . . . . . . . Ramming 2 | . 2 . . . . . Kinetic 4338 | 118 871 136 . . 2921 292 Thermal 50 | . . . . . . 50 Explosive 603 | . 209 115 . 86 193 . Electromagnetic 204 | . . . . . . 204 Impact . | . . . . . . . Slashing . | . . . . . . . Piercing . | . . . . . . . Highest Corruption 1 | . . . . . 1 1 Average Corruption 1 | . . . . . 1 1 Corruption Purged . | . . . . . . . Corruption Blocked . | . . . . . . . Effects 7 | . . . . . 7 . Message Errors 4 | . . . . . 4 . Matter Fused 1 | . . . . . 1 . Energy Discharges 1 | . . . . . 1 . Weapon Failures 1 | . . . . . 1 . Overload Shots . | . . . . . . . Overflow Damage 75 | . . . . 4 71 . Projectiles . | . . . . . . . Explosions 75 | . . . . 4 71 . Melee . | . . . . . . . Knockbacks . | . . . . . . . Impact . | . . . . . . . Kinetic . | . . . . . . . Secondary . | . . . . . . . Self-Inflicted Damage 217 | . 42 . . 32 100 43 Shots 6 | . 1 . . 1 1 3 Rammed 1 | . 1 . . . . . Targets Rammed 1 | . 1 . . . . . Kicked . | . . . . . . . Crushed . | . . . . . . . Highest Temperature 76 | . 36 27 . . 76 49 Average Temperature 12 | . 15 15 . . 11 14 Received Heat Transfer 1389 | . 489 63 . . 702 135 Siege Activations . | . . . . . . . Robots Corrupted . | . . . . . . . Combat Hostiles . | . . . . . . . Parts Fried . | . . . . . . . Impact Corruptions . | . . . . . . . Robots Melted . | . . . . . . . Combat Hostiles . | . . . . . . . Parts Melted . | . . . . . . . Heat Transferred 111 | . . . . . . 111 Parts Sabotaged . | . . . . . . . Parts Stolen . | . . . . . . . Parts Stripped . | . . . . . . . Power Chain Reactions . | . . . . . . . Alert | -11 -10 -10 -10 -9 -8 -8 ------- Run | Yrd Mat Min Exi Min Mat Gar Peak Influence 643 | 20 259 122 . 35 395 643 Initial 259 | . 13 48 . . 13 259 Average 113 | 7 87 42 . 2 119 387 Maximum Alert Level 2 | . 1 . . . 1 2 Low Security (%) 77 | 100 86 100 . 100 76 . Level 1 17 | . 13 . . . 23 48 Level 2 5 | . . . . . . 51 Level 3 . | . . . . . . . Level 4 . | . . . . . . . Level 5 . | . . . . . . . High Security . | . . . . . . . Max Security . | . . . . . . . Squads Dispatched 8 | . 1 . . . 7 . Investigation 1 | . . . . . 1 . Extermination . | . . . . . . . Reinforcement 4 | . 1 . . . 3 . Assault . | . . . . . . . Garrison 3 | . . . . . 3 . Intercept . | . . . . . . . Searches Triggered . | . . . . . . . Construction Impeded 1 | . . . . . 1 . Haulers Reinforced . | . . . . . . . Active Scanning Responses . | . . . . . . . Cargo Convoy Interrupts . | . . . . . . . Stealth | -11 -10 -10 -10 -9 -8 -8 --------- Run | Yrd Mat Min Exi Min Mat Gar Distress Signals 4 | . 2 . . . 2 . Communications Jammed . | . . . . . . . Distress Signals . | . . . . . . . Times Spotted 77 | . 16 3 . 1 39 18 Peak Tracking Total 9 | . 4 2 . 1 8 9 Tactical Retreats 4 | . . 1 . . 1 2 Traps | -11 -10 -10 -10 -9 -8 -8 ------- Run | Yrd Mat Min Exi Min Mat Gar Traps Triggered 3 | . . . . . 1 2 Indirectly 2 | . . . . . . 2 Trap Hack Attempts . | . . . . . . . Triggered . | . . . . . . . Disarmed . | . . . . . . . Reprogrammed 4 | . 4 . . . . . Reused . | . . . . . . . Traps Extracted . | . . . . . . . Installed . | . . . . . . . Triggered 1 | . . . . . . 1 Machines | -11 -10 -10 -10 -9 -8 -8 ---------- Run | Yrd Mat Min Exi Min Mat Gar Machines Disabled 8 | . . 1 . . 3 4 Max in Single Turn 2 | . . 1 . . 2 1 Garrison Relay 2 | . . . . . . 2 Machines Repaired . | . . . . . . . Machines Dismantled . | . . . . . . . Machines Sabotaged . | . . . . . . . Overloaded Fab Kills . | . . . . . . . Hacking | -11 -10 -10 -10 -9 -8 -8 --------- Run | Yrd Mat Min Exi Min Mat Gar Machines Accessed 13 | . 2 . 1 . 9 1 Terminals 9 | . 2 . . . 6 1 Fabricators . | . . . . . . . Repair Stations 1 | . . . . . 1 . Recycling Units . | . . . . . . . Scanalyzers 1 | . . . . . 1 . Garrison Access 1 | . . . . . 1 . Total Hacks 30 | . 6 . 1 . 22 1 Successful 18 | . 4 . 1 . 12 1 Failed 12 | . 2 . . . 10 . Catastrophic 4 | . 1 . . . 3 . Database Lockouts . | . . . . . . . Manual 1 | . . . 1 . . . Terminals 19 | . 6 . . . 12 1 Fabricators . | . . . . . . . Repair Stations 3 | . . . . . 3 . Recycling Units . | . . . . . . . Scanalyzers 3 | . . . . . 3 . Garrison Access 4 | . . . . . 4 . Terminal Hacks 12 | . 4 . 1 . 6 1 Record 2 | . 1 . . . 1 . Branch Access Points 1 | . 1 . . . . . Alert Level 1 | . . . . . 1 . Locate Traps 2 | . 1 . . . 1 . Reprogram Traps 1 | . 1 . . . . . Hauler Manifests 1 | . . . . . 1 . Zone Layout 2 | . . . . . 2 . Garrison Registry 1 | . . . . . . 1 Derelict Proto ID Bank 1 | . . . 1 . . . Fabricator Hacks . | . . . . . . . Repair Station Hacks 2 | . . . . . 2 . Scan Component 1 | . . . . . 1 . Repair 1 | . . . . . 1 . Recycling Unit Hacks . | . . . . . . . Scanalyzer 3 | . . . . . 3 . Insert Component 2 | . . . . . 2 . Analyze 1 | . . . . . 1 . Garrison Access Hacks 1 | . . . . . 1 . Unlock Access 1 | . . . . . 1 . Unauthorized Hacks . | . . . . . . . Terminals . | . . . . . . . Fabricators . | . . . . . . . Repair Stations . | . . . . . . . Recycling Units . | . . . . . . . Scanalyzers . | . . . . . . . Garrison Access . | . . . . . . . Data Cores Recovered . | . . . . . . . Used . | . . . . . . . Hacking Detections 8 | . 2 . . . 6 . Full Trace Events 1 | . . . . . 1 . Feedback Events 1 | . . . . . 1 . Corruption 1 | . . . . . 1 . Feedback Blocked . | . . . . . . . Robot Schematics Acquired . | . . . . . . . Robots Built . | . . . . . . . Authchips . | . . . . . . . Time . | . . . . . . . Total Robot Build Rating . | . . . . . . . Part Schematics Acquired 1 | . . . . . 1 . Parts Built . | . . . . . . . Authchips . | . . . . . . . Time . | . . . . . . . Total Part Build Rating . | . . . . . . . Parts Repaired 1 | . . . . . 1 . Time 38 | . . . . . 38 . Parts Recycled . | . . . . . . . Recycled Matter . | . . . . . . . Retrieved Matter . | . . . . . . . Retrieved Components . | . . . . . . . Parts Scanalyzed 1 | . . . . . 1 . Part Schematics Acquired 1 | . . . . . 1 . Parts Damaged 1 | . . . . . 1 . Bothacking | -11 -10 -10 -10 -9 -8 -8 ------------ Run | Yrd Mat Min Exi Min Mat Gar Used RIF Installer . | . . . . . . . Robots Hacked . | . . . . . . . Non-combat . | . . . . . . . Combat . | . . . . . . . Robot Hacks Applied . | . . . . . . . Relay Couplers Released 10 | . . . . . . 10 Machine Destruction 10 | . . . . . . 10 Fabnet Peak Effective % . | . . . . . . . Robots Rewired . | . . . . . . . Allies Hacked . | . . . . . . . Hacks Repelled . | . . . . . . . Allies | -11 -10 -10 -10 -9 -8 -8 -------- Run | Yrd Mat Min Exi Min Mat Gar Total Allies . | . . . . . . . Largest Group . | . . . . . . . Highest-Rated Group . | . . . . . . . Highest-Rated Ally . | . . . . . . . Total Orders . | . . . . . . . Ally Attacks . | . . . . . . . Total Damage . | . . . . . . . Kills . | . . . . . . . Allies Corrupted . | . . . . . . . Allies Melted . | . . . . . . . Intel | -11 -10 -10 -10 -9 -8 -8 ------- Run | Yrd Mat Min Exi Min Mat Gar Robot Analysis Total . | . . . . . . . Derelict Logs Recovered 2 | . . 1 . 1 . . Drone Launches . | . . . . . . . Drone Recoveries . | . . . . . . . Exploration | -11 -10 -10 -10 -9 -8 -8 ------------- Run | Yrd Mat Min Exi Min Mat Gar Turns Passed 4028 | 81 589 543 251 461 1730 373 Spaces Moved 2151 | 42 256 421 212 249 793 178 Core 179 | 18 3 . . . 158 . Treads 882 | 24 193 . . . 487 178 Legs . | . . . . . . . Wheels 5 | . . . . . 5 . Hover 15 | . . . . . 15 . Flight 1070 | . 60 421 212 249 128 . Fastest Speed 31 | 50 117 117 117 117 31 160 Average Speed 139 | 112 154 117 117 117 156 160 Slowest Speed 300 | 160 300 117 117 117 300 160 Overloaded Moves . | . . . . . . . Propulsion Burnouts . | . . . . . . . Robots Hopped . | . . . . . . . Cave-ins Triggered . | . . . . . . . Exploration Rate (%) 44 | 3 37 79 60 50 62 21 Regions Visited 6 Branch Regions 3 Pre-discovered Areas 1 | . . . . 1 . . Known Exits Taken 2 | . 1 . . . 1 . Unknown Exits Taken 4 | 1 . 1 1 1 . . Scrap Searched 2 | . . . . 2 . . Spaces Dug 8 | . 8 . . . . . Terrain Destroyed 120 | . 22 29 . 51 18 . Melee . | . . . . . . . Projectile . | . . . . . . . AOE 120 | . 22 29 . 51 18 . Terrain Rammed . | . . . . . . . Walls Destroyed . | . . . . . . . Machines Disabled . | . . . . . . . Actions | -11 -10 -10 -10 -9 -8 -8 --------- Run | Yrd Mat Min Exi Min Mat Gar Total 2749 | 61 339 450 214 408 1054 223 Wait 240 | . . 16 . 146 78 . Move 2146 | 41 255 420 211 248 793 178 Hop . | . . . . . . . Pick Up 40 | 6 12 . 1 1 18 2 Fast Attach 15 | 1 2 . . . 11 1 Attach 24 | 6 3 . 1 . 12 2 Detach 1 | . . . . . 1 . Swap 17 | . 4 1 1 2 5 4 Drop 14 | . 3 . . 1 8 2 Fire 245 | 7 59 13 . 10 128 28 Melee 6 | . . . . . . 6 Ram . | . . . . . . . Kick . | . . . . . . . Crush 1 | . 1 . . . . . Escape Stasis . | . . . . . . . Rewire . | . . . . . . . Trap . | . . . . . . . Miscellaneous . | . . . . . . . Route ------- -11/Scrapyard -10/Materials (discovered 3 exits: [*Mat] / *Min x2) -10/Mines (discovered 2 exits: [*Mat] / *Exi) -10/Exiles -9/Mines -8/Materials (discovered 2 exits: [*Fac] / Gar) -8/Garrison (discovered 3 exits: [Mat x3]) History --------- Turn | Location | Event 8 | -11/Scrapyard | Discovered new exit (range 13) 82 | -11/Scrapyard | Entered Materials 116 | -10/Materials | Discovered new exit (range 16) 138 | -10/Materials | Identified exit to Mines 311 | -10/Materials | Build established: Mutant 429 | -10/Materials | Discovered new exit (range 16) 478 | -10/Materials | Core integrity fell below 50% 671 | -10/Materials | Entered Mines 827 | -10/Mines | Learned Materials stockpile data 986 | -10/Mines | Deemed a non-threat by the Exiles lab entrance 986 | -10/Mines | Discovered new exit (range 5) 1041 | -10/Mines | Discovered new exit (range 5) 1214 | -10/Mines | Entered Exiles 1246 | -10/Exiles | Met 8R-AWN 1266 | -10/Exiles | Met EX-HEX 1304 | -10/Exiles | Met EX-BIN 1317 | -10/Exiles | Aligned with FarCom system 1318 | -10/Exiles | Given EX-Vault access code 1345 | -10/Exiles | Opened EX-Vault 1354 | -10/Exiles | Found Modified TNC 1378 | -10/Exiles | Warned to stay clear of 0b10 Research branches 1412 | -10/Exiles | Met EX-DEC 1453 | -10/Exiles | Discovered new exit (range 12) 1465 | -10/Exiles | Left Exiles lab with Modified TNC 1465 | -10/Exiles | Entered Mines 1478 | -9/Mines | Met a Derelict bent on vengeance 1500 | -9/Mines | Learned location of Storage (-8) 1620 | -9/Mines | Discovered new exit (range 7) 1676 | -9/Mines | Excavation squad dispatched 1676 | -9/Mines | A large section of the Mines collapsed 1926 | -9/Mines | Entered Materials 1926 | -8/Materials | Evolved 4 slots: Propulsion x2, Utility x2 1968 | -8/Materials | Repaired Lgt. Nuclear Core 2049 | -8/Materials | Lost 6 parts (4n2w) 2995 | -8/Materials | Build established: Scavenger-Skirmisher 3246 | -8/Materials | Core integrity fell below 50% 3270 | -8/Materials | Discovered new exit (range 10) 3435 | -8/Materials | Garrison activated, responded to threat 3542 | -8/Materials | Garrison activated, responded to threat 3656 | -8/Materials | Identified exit to Garrison 3656 | -8/Materials | Entered Garrison 3730 | -8/Garrison | Triggered checkpoint 3741 | -8/Garrison | Core integrity fell below 20% 3765 | -8/Garrison | Discovered new exit (range 64) 3765 | -8/Garrison | Discovered new exit (range 76) 3765 | -8/Garrison | Discovered new exit (range 42) 3799 | -8/Garrison | Garrison Relay disabled 3837 | -8/Garrison | Garrison Relay disabled 3910 | -8/Garrison | Triggered checkpoint 3955 | -8/Garrison | Triggered checkpoint 4029 | -8/Garrison | Destroyed by G-47 Trooper with Particle Gun Last Messages --------------- 03955_ Garrison Door breached. 03955_ Beams of light sweep through the air. An alarm sounds. 03957_ S-10 Pest IFF system glitched. 03959_ S-10 Pest destroyed. 03960_ G-47 Trooper IFF system glitched. 03963_ Lgt. Treads destroyed. 03963_ Hrd. Light Armor Plating destroyed. 03972_ S-10 Pest destroyed. 03977_ Modified TNC destroyed. 03980_ Lgt. Treads destroyed. 03981_ G-47 Trooper destroyed. 03984_ Destroyed Flight Unit. 03993_ Minigun destroyed. 03996_ S-10 Pest destroyed. 04006_ Acquired Flight Unit. 04021_ Minigun destroyed. 04022_ Lgt. Treads destroyed. 04027_ Lgt. Angular Momentum Engine destroyed. 04028_ G-50 Soldier destroyed. Map ----- +----------------------------------------------------+ | ## #???# #??????# ######+## ##########????????? | | ## ##### #??????# ###### ## #??############???? | | ## + #??????# # ## #??#""""""""""#???? | | ## ##### #??????# ##### ### ####"^!!!]="""#???? | | ## #???# ######## T#??# #?# ## ""#???? | | ## #???# ## ## ##??# #?# ## ++++ !"#???? | | ## #??## ##""""## ##??# #?# ## + + ]"#???? | | ##+#### ####+### ## + + *"#???? | | + ++++^ ="#???? | | + ""#???? | | ####### ## ## s ##############"!!]!*!"""#???? | | ????### ## ## ###??????????#""""""""""#???? | | ????# " #??????????############???? | | ????# " #?????????????????????????? | | ????# " [ #?????????????????????????? | | ????# " =% #?????????????????????????? | | ????### ## ## =%###?????????????????????????? | | ??????# ## ## ##########??????????????????? | | ??????# ^ #################### | | ??????# ^ =! " !!! | | ??????# ^ ####%## ########### #####""! | | ??????## ## ##^^##??#=## #?????????# #???#### | | ???????# ## ##^^#???#!## #?????????# #??????? | | ???????# ######## #???#[## #????????##"##?????? | | ???????# #??????# #####[## #????????# #?????? | | ???????# #??????# +s [ @## ########## [ ####### | | ???????# #??????# #####%g+ + + | | ???????# #??????# #???#### ##### ######### #### | | ######## #??????# ######## #???# #???????# #"#? | | #??????# ##### #???????#] "#? | | #??????# #???????#!!!#? | | ########++#??????########### #######???????# !"#? | | ???????# #????????????????# #?????????????# #"#? | | ???????# #????????????????# #?????????????#####? | | ???????# #????????????????# #??????????????????? | | ???????# #????????????????# #??????????????????? | | ???????# #????????????????# #??????????????????? | | ???????# #????????????????# ##############?????? | | #####??# #????????????????# #?????? | | """"#??# #????????????????# #?????? | | !"""#??# #????????????????############# #?????? | | ""#??# #????????????????????????????# #?????? | | !"#??# #????????????????????????????#####?????? | | !"#??# #??????????????????????????????????????? | | !"#??# #??????????????????????????????????????? | | !"#??# #??????????????????????????????????????? | | !"#??# #??????????????????????????????????????? | | !"#??# #??????????????????????????????????????? | | ""#??# #??????????????????????????????????????? | | ####??# #??????????????????????????????????????? | +----------------------------------------------------+ Best States ------------- Heat Dissipation 31 Energy Generation 18 Energy Capacity 160 Matter Stores 300 Matter Capacity 300 Sight Range 16 Robot Scan Range 15 Terrain Scan Density 10 Armor Coverage 150 Evasion (%) 63 Recoil Reduction 4 Item Schematics ----------------- Remote Datajack | -8/Materials | Scanalyzed Robot Schematics ------------------ None Fabricated ------------ Nothing Alien Tech Used ----------------- None Achievements -------------- None Challenges ------------ None Game ------ Seed DecoyDispersionUnit Manual? 0 Play Time 00:38:07 Cumulative 6.5 hours Start 2025.01.11 @ 19:50:38 End 2025.01.11 @ 20:29:00 Sessions 1 Manual Loads 0 Difficulty Rogue Special Mode None Game No. 9 Rogue 9 Adventurer 0 Explorer 0 Win Type - Total 0 Types 0/0/0/0/0/0/0/0/0 Lore% 8 Gallery% 12 Achievement% 11 Wizard Run 0 Options --------- Layout 1 ASCII 0 Keyboard 0 Movement Mouse Keybinds 0 Fullscreen 0 Font 24/Smallcaps Map View 50x35 Zoom Use 0% Tactical HUD 1 Map Filters NONE Filters NONE Steam 1 RUN: 9abf5b85-c395-4dc3-8be9-99f5dfbcbde9